fUSD/lending_fUSD_20240318
["ID","MTS","AMOUNT","RATE_DAILY","PERIOD"]
[319435355,1710736328227,-500.0,0.0003315,4]
[319435356,1710736328236,-509.28962763,0.0003315,4]
[319435357,1710736328245,-500.0,0.0003315,4]
[319435358,1710736328254,-500.0,0.0003315,4]
[319435359,1710736328263,-500.0,0.0003315,4]
[319435360,1710736328273,-500.0,0.0003315,4]
[319435361,1710736328282,-1200.43,0.0003315,4]
[319435362,1710736328291,-500.0,0.0003315,4]
[319435363,1710736328300,-500.0,0.0003315,4]
[319435364,1710736328309,-500.0,0.0003315,4]
[319435365,1710736328318,-500.0,0.0003315,4]
[319435366,1710736328328,-646.93,0.0003315,4]
[319435367,1710736328337,-593.8,0.0003315,4]
[319435368,1710736328346,-3040.38,0.0003315,4]
[319435369,1710736328355,-912.86,0.0003315,4]
[319435370,1710736328365,-521.56,0.0003315,4]
[319435371,1710736328375,-503.28740692,0.0003315,4]
[319435372,1710736328384,-500.0,0.0003315,4]
[319435373,1710736328393,-500.0,0.0003315,4]
[319435374,1710736328402,-2075.71,0.0003315,4]
[319435375,1710736328411,-1026.81,0.0003315,4]
[319435376,1710736328420,-788.56,0.0003315,4]
[319435377,1710736328429,-500.0,0.0003315,4]
[319435378,1710736328439,-500.0,0.0003315,4]
[319435379,1710736328449,-615.18,0.0003315,4]
[319435380,1710736328459,-500.0,0.0003315,4]
[319435381,1710736328468,-1506.09,0.0003315,4]
[319435382,1710736328478,-329.68848446,0.0003315,4]
[319435383,1710736328488,-500.0,0.0003315,4]
[319435384,1710736328497,-500.0,0.0003315,4]
[319435385,1710736328506,-1442.43,0.0003315,4]
[319435386,1710736328516,-500.0,0.0003315,4]
[319435387,1710736328527,-4584.29,0.0003315,4]
[319435388,1710736328536,-1419.83,0.0003315,4]
[319435389,1710736328545,-1416.16,0.0003315,4]
[319435390,1710736328555,-1501.08,0.0003315,4]
[319435391,1710736328564,-500.0,0.0003315,4]
[319435392,1710736328573,-291.41791546,0.0003315,4]
[319435393,1710736328582,-1326.91,0.0003315,4]
[319435394,1710736328591,-500.0,0.0003315,4]
[319435395,1710736328600,-1157.88,0.0003315,4]
[319435396,1710736328610,-500.0,0.0003315,4]
[319435397,1710736328620,-522.83,0.0003315,4]
[319435398,1710736328629,-1901.89,0.0003315,4]
[319435399,1710736328639,-884.27,0.0003315,4]
[319435400,1710736328649,-718.57,0.0003315,4]
[319435401,1710736328659,-500.0,0.0003315,4]
[319435402,1710736328668,-500.0,0.0003315,4]
[319435403,1710736328677,-500.0,0.0003315,4]
[319435404,1710736328687,-626.44,0.0003315,4]
[319435405,1710736328696,-1481.56,0.0003315,4]
[319435406,1710736328706,-820.19,0.0003315,4]
[319435407,1710736328716,-616.04,0.0003315,4]
[319435408,1710736328725,-661.6,0.0003315,4]
[319435409,1710736328735,-807.78,0.0003315,4]
[319435410,1710736328746,-576.56,0.0003315,4]
[319435411,1710736328757,-500.0,0.0003315,4]
[319435412,1710736328769,-500.0,0.0003315,4]
[319435413,1710736328779,-1258.08,0.0003315,4]
[319435414,1710736328789,-571.72109297,0.0003315,4]
[319435415,1710736328799,-922.75,0.0003315,4]
[319435416,1710736328808,-500.0,0.0003315,4]
[319435417,1710736328817,-500.0,0.0003315,4]
[319435418,1710736328827,-1859.01,0.0003315,4]
[319435419,1710736328837,-998.14,0.0003315,4]
[319435420,1710736328848,-712.78,0.0003315,4]
[319435421,1710736328858,-3134.02,0.0003315,4]
[319435422,1710736328867,-720.74,0.0003315,4]
[319435423,1710736328877,-835.55,0.0003315,4]
[319435424,1710736328887,-794.41,0.0003315,4]
[319435425,1710736328896,-3743.94,0.0003315,4]
[319435426,1710736328905,-500.0,0.0003315,4]
[319435427,1710736328915,-642.05,0.0003315,4]
[319435428,1710736328924,-1113.65,0.0003315,4]
[319435429,1710736328934,-589.6,0.0003315,4]
[319435430,1710736328945,-410.72815784,0.0003315,4]
[319435431,1710736328954,-500.0,0.0003315,4]
[319435432,1710736328963,-633.04,0.0003315,4]
[319435433,1710736328973,-512.73,0.0003315,4]
[319435434,1710736328983,-774.64,0.0003315,4]
[319435435,1710736328992,-1524.04,0.0003315,4]
[319435436,1710736329001,-1898.65,0.0003315,4]
[319435437,1710736329011,-167.82007756,0.0003315,4]
[319435438,1710736329020,-1586.83,0.0003315,4]
[319435439,1710736329031,-500.0,0.0003315,4]
[319435440,1710736329042,-500.0,0.0003315,4]
[319435441,1710736329052,-833.34,0.0003315,4]
[319435442,1710736329061,-1329.2,0.0003315,4]
[319435443,1710736329071,-500.0,0.0003315,4]
[319435444,1710736329081,-501.93,0.0003315,4]
[319435445,1710736329091,-574.74,0.0003315,4]
[319435446,1710736329100,-526.35188712,0.0003315,4]
[319435447,1710736329176,-500.0,0.0003315,4]
[319435448,1710736329185,-899.79,0.0003315,4]
[319435449,1710736329194,-500.0,0.0003315,4]
[319435450,1710736329204,-836.63,0.0003315,4]
[319435451,1710736329214,-663.74,0.0003315,4]
[319435452,1710736329223,-1143.03,0.0003315,4]
[319435453,1710736329234,-500.0,0.0003315,4]
[319435454,1710736329243,-1917.2,0.0003315,4]
[319435455,1710736329253,-1716.33,0.0003315,4]
[319435456,1710736329262,-1304.54,0.0003315,4]
[319435457,1710736329270,-500.0,0.0003315,4]
[319435458,1710736329280,-705.47,0.0003315,4]
[319435459,1710736329290,-794.56,0.0003315,4]
[319435460,1710736329299,-500.0,0.0003315,4]
[319435461,1710736329309,-588.98,0.0003315,4]
[319435462,1710736329318,-560.65,0.0003315,4]
[319435463,1710736329327,-2333.6,0.0003315,4]
[319435464,1710736329337,-1061.17,0.0003315,4]
[319435465,1710736329347,-758.7,0.0003315,4]
[319435466,1710736329356,-335.56485942,0.0003315,4]
[319435467,1710736329366,-1095.12,0.0003315,4]
[319435468,1710736329375,-376.38281513,0.0003315,4]
[319435469,1710736329384,-2145.95,0.0003315,4]
[319435470,1710736329393,-1627.27,0.0003315,4]
[319435471,1710736329403,-446.90604813,0.0003315,4]
[319435472,1710736329412,-500.0,0.0003315,4]
[319435473,1710736329421,-500.0,0.0003315,4]
[319435474,1710736329431,-2012.26,0.0003315,4]
[319435475,1710736329439,-246.75941986,0.0003315,2]
[319435476,1710736329448,-1352.76,0.0003315,4]
[319435477,1710736329457,-537.95,0.0003315,4]
[319435478,1710736329466,-500.0,0.0003315,4]
[319435479,1710736329475,-2747.25,0.0003315,4]
[319435480,1710736329484,-606.33,0.0003315,4]
[319435481,1710736329493,-500.0,0.0003315,4]
[319435482,1710736329503,-500.0,0.0003315,4]
[319435483,1710736329512,-500.0,0.0003315,4]
[319435484,1710736329521,-500.0,0.0003315,4]
[319435485,1710736329531,-554.01,0.0003315,4]
[319435486,1710736329540,-807.58,0.0003315,4]
[319435487,1710736329549,-2956.82,0.0003315,4]
[319435488,1710736329558,-500.0,0.0003315,4]
[319435489,1710736329567,-500.0,0.0003315,4]
[319435490,1710736329576,-500.0,0.0003315,4]
[319435491,1710736329586,-1607.18,0.0003315,4]
[319435492,1710736329595,-500.0,0.0003315,4]
[319435493,1710736329604,-1221.54,0.0003315,4]
[319435494,1710736329613,-1838.23,0.0003315,4]
[319435495,1710736329623,-1026.01,0.0003315,4]
[319435496,1710736329632,-842.1,0.0003315,4]
[319435497,1710736329642,-512.31,0.0003315,4]
[319435498,1710736329651,-500.0,0.0003315,4]
[319435499,1710736329661,-831.26,0.0003315,4]
[319435500,1710736329670,-1448.23,0.0003315,4]
[319435501,1710736329679,-1157.32,0.0003315,4]
[319435502,1710736329689,-556.38,0.0003315,4]
[319435503,1710736329699,-500.0,0.0003315,4]
[319435504,1710736329708,-500.0,0.0003315,4]
[319435505,1710736329717,-1287.24,0.0003315,4]
[319435506,1710736329727,-1436.69,0.0003315,4]
[319435507,1710736329736,-1335.54,0.0003315,4]
[319435508,1710736329747,-500.0,0.0003315,4]
[319435509,1710736329757,-1968.76,0.0003315,4]
[319435510,1710736329766,-799.94,0.0003315,4]
[319435511,1710736329777,-1597.09,0.0003315,4]
[319435512,1710736329787,-500.0,0.0003315,4]
[319435513,1710736329797,-500.0,0.0003315,4]
[319435514,1710736329806,-500.0,0.0003315,4]
[319435515,1710736329816,-632.08,0.0003315,4]
[319435516,1710736329826,-681.46,0.0003315,4]
[319435517,1710736329835,-1138.91,0.0003315,4]
[319435518,1710736329845,-1427.1,0.0003315,4]
[319435519,1710736329854,-809.76,0.0003315,4]
[319435520,1710736329863,-500.0,0.0003315,4]
[319435521,1710736329872,-1229.86,0.0003315,4]
[319435522,1710736329881,-500.0,0.0003315,4]
[319435523,1710736329891,-691.68,0.0003315,4]
[319435524,1710736329900,-2635.68,0.0003315,4]
[319435525,1710736329909,-500.0,0.0003315,4]
[319435526,1710736329920,-500.0,0.0003315,4]
[319435527,1710736329929,-500.0,0.0003315,4]
[319435528,1710736329939,-788.73,0.0003315,4]
[319435529,1710736329948,-500.0,0.0003315,4]
[319435530,1710736329958,-500.0,0.0003315,4]
[319435531,1710736329967,-2115.38,0.0003315,4]
[319435532,1710736329977,-500.0,0.0003315,4]
[319435533,1710736329986,-1520.72,0.0003315,4]
[319435534,1710736329996,-1607.09,0.0003315,4]
[319435535,1710736330006,-500.0,0.0003315,4]
[319435536,1710736330015,-500.0,0.0003315,4]
[319435537,1710736330027,-1832.55,0.0003315,4]
[319435538,1710736330037,-539.51760767,0.0003315,4]
[319435539,1710736330046,-824.57,0.0003315,4]
[319435540,1710736330056,-1581.71,0.0003315,4]
[319435541,1710736330065,-583.42,0.0003315,4]
[319435542,1710736330075,-1212.73,0.0003315,4]
[319435543,1710736330084,-1404.3,0.0003315,4]
[319435544,1710736330094,-24025.87,0.0003315,4]
[319435545,1710736330104,-500.0,0.0003315,4]
[319435546,1710736330114,-2851.25,0.0003315,4]
[319435547,1710736330123,-2546.72,0.0003315,4]
[319435548,1710736330133,-2287.3,0.0003315,4]
[319435549,1710736330143,-500.0,0.0003315,4]
[319435550,1710736330153,-500.0,0.0003315,4]
[319435551,1710736330163,-647.58,0.0003315,4]
[319435552,1710736330173,-585.33,0.0003315,4]
[319435553,1710736330182,-1053.54,0.0003315,4]
[319435554,1710736330191,-497.90875127,0.0003315,4]
[319435555,1710736330201,-1503.64,0.0003315,4]
[319435556,1710736330210,-1183.08,0.0003315,4]
[319435557,1710736330219,-498.42018553,0.0003315,4]
[319435558,1710736330229,-500.0,0.0003315,4]
[319435559,1710736330238,-2122.6,0.0003315,4]
[319435560,1710736330248,-554.14,0.0003315,4]
[319435561,1710736330258,-500.0,0.0003315,4]
[319435562,1710736330267,-513.85,0.0003315,4]
[319435563,1710736330277,-1088.26,0.0003315,4]
[319435564,1710736330286,-1355.29,0.0003315,4]
[319435565,1710736330295,-1081.54,0.0003315,4]
[319435566,1710736330305,-602.31,0.0003315,4]
[319435567,1710736330314,-500.0,0.0003315,4]
[319435568,1710736330323,-500.0,0.0003315,4]
[319435569,1710736330333,-16800.01,0.0003315,4]
[319435570,1710736330342,-732.67,0.0003315,4]
[319435571,1710736330351,-479.13805602,0.0003315,4]
[319435572,1710736330360,-500.0,0.0003315,4]
[319435573,1710736330370,-500.0,0.0003315,4]
[319435574,1710736330380,-742.96,0.0003315,4]
[319435575,1710736330389,-875.28,0.0003315,4]
[319435576,1710736330399,-500.0,0.0003315,4]
[319435577,1710736330408,-535.81379626,0.0003315,4]
[319435578,1710736330417,-1382.05,0.0003315,4]
[319435579,1710736330426,-9617.26,0.0003315,4]
[319435580,1710736330435,-632.75,0.0003315,4]
[319435581,1710736330445,-523.3,0.0003315,4]
[319435582,1710736330454,-580.33053859,0.0003315,4]
[319435583,1710736330463,-500.0,0.0003315,4]
[319435584,1710736330473,-9955.07,0.0003315,4]
[319435585,1710736330482,-1242.28,0.0003315,4]
[319435586,1710736330491,-500.0,0.0003315,4]
[319435587,1710736330500,-815.39,0.0003315,4]
[319435588,1710736330509,-606.68,0.0003315,4]
[319435589,1710736330518,-2827.35,0.0003315,4]
[319435590,1710736330527,-500.0,0.0003315,4]
[319435591,1710736330537,-584.4,0.0003315,4]
[319435592,1710736330546,-500.0,0.0003315,4]
[319435593,1710736330555,-500.0,0.0003315,4]
[319435594,1710736330564,-2844.9,0.0003315,4]
[319435595,1710736330573,-567.57649461,0.0003315,4]
[319435596,1710736330583,-918.65,0.0003315,4]
[319435597,1710736330593,-2329.09,0.0003315,4]
[319435598,1710736330602,-2657.41,0.0003315,4]
[319435599,1710736330611,-500.0,0.0003315,4]
[319435600,1710736330621,-5715.22,0.0003315,4]
[319435601,1710736330630,-1178.39,0.0003315,4]
[319435602,1710736330639,-524.18300664,0.0003315,4]
[319435603,1710736330647,-530.53246388,0.0003315,4]
[319435604,1710736330657,-1030.3,0.0003315,4]
[319435605,1710736330666,-7010.64,0.0003315,4]
[319435606,1710736330675,-500.0,0.0003315,4]
[319435607,1710736330685,-795.31,0.0003315,4]
[319435608,1710736330695,-513.90455346,0.0003315,4]
[319435609,1710736330704,-647.9,0.0003315,4]
[319435610,1710736330713,-756.1,0.0003315,4]
[319435611,1710736330722,-500.0,0.0003315,4]
[319435612,1710736330731,-500.0,0.0003315,4]
[319435613,1710736330740,-1213.71,0.0003315,4]
[319435614,1710736330752,-3112.49,0.0003315,4]
[319435615,1710736330761,-16099.23,0.0003315,4]
[319435616,1710736330770,-1067.48,0.0003315,4]
[319435617,1710736330780,-1085.99,0.0003315,4]
[319435618,1710736330790,-379.42440728,0.0003315,4]
[319435619,1710736330800,-500.0,0.0003315,4]
[319435620,1710736330809,-7279.53,0.0003315,4]
[319435621,1710736330819,-500.0,0.0003315,4]
[319435622,1710736330828,-3639.26,0.0003315,4]
[319435623,1710736330839,-4937.08,0.0003315,4]
[319435624,1710736330849,-14656.9,0.0003315,4]
[319435625,1710736330858,-500.0,0.0003315,4]
[319435626,1710736330868,-1119.07,0.0003315,4]
[319435627,1710736330882,-500.0,0.0003315,4]
[319435628,1710736330892,-714.97,0.0003315,4]
[319435629,1710736330901,-500.0,0.0003315,4]
[319435630,1710736330911,-3778.15,0.0003315,4]
[319435631,1710736330920,-2442.22,0.0003315,4]
[319435632,1710736330929,-915.55,0.0003315,4]
[319435633,1710736330939,-500.0,0.0003315,4]
[319435634,1710736330948,-500.0,0.0003315,4]
[319435635,1710736330957,-2039.35,0.0003315,4]
[319435636,1710736330966,-1590.31,0.0003315,4]
[319435637,1710736330975,-500.0,0.0003315,2]
[319435638,1710736330984,-2078.76,0.0003315,4]
[319435639,1710736330993,-765.76,0.0003315,4]
[319435640,1710736331006,-2024.35,0.0003315,4]
[319435641,1710736331015,-500.0,0.0003315,4]
[319435642,1710736331025,-3546.12,0.0003315,4]
[319435643,1710736331034,-1006.74,0.00033195,2]
[319435644,1710736331043,-151.031811,0.00033198,4]
[319435645,1710736331053,-151.031811,0.00033198,5]
[319435646,1710736331062,-20000.0,0.000332,5]
[319435647,1710736331071,-622369.49473827,0.000332,3]
[319435648,1710736331080,-422.257105,0.000332,7]
[319435649,1710736331089,-422.257105,0.000332,7]
[319435650,1710736331099,-488.338229,0.000332,7]
[319435651,1710736331108,-151.0,0.000332,7]
[319435652,1710736331117,-488.338229,0.000332,7]
[319435653,1710736331127,-151.0,0.000332,7]
[319435654,1710736331136,-152.080365,0.000332,5]
[319435655,1710736331145,-151.0,0.000332,7]
[319435656,1710736331154,-151.0,0.000332,7]
[319435657,1710736331164,-154.830592,0.000332,7]
[319435658,1710736331174,-154.830592,0.000332,7]
[319435659,1710736331183,-174.17123,0.000332,7]
[319435660,1710736331193,-174.17123,0.000332,7]
[319435661,1710736331203,-151.0,0.000332,7]
[319435662,1710736331212,-151.0,0.000332,7]
[319435663,1710736331222,-150.0,0.00033205,7]
[319435664,1710736331231,-150.0,0.00033209,7]
[319435665,1710736331240,-49471.29404281,0.00033297,7]
[319435666,1710736331249,-1000.0,0.00033299,9]
[319435667,1710736331258,-246.0,0.000333,2]
[319435668,1710736331267,-262.0,0.000333,2]
[319435669,1710736331276,-246.0,0.000333,2]
[319435670,1710736331286,-210.0,0.000333,2]
[319435671,1710736331295,-500.0,0.000333,10]
[319435672,1710736331303,-10000.0,0.000333,7]
[319435673,1710736331313,-150.136983,0.000333,2]
[319435674,1710736331322,-150.0,0.0003332,7]
[319435675,1710736331331,-156.19687461,0.00033397,30]
[319435676,1710736331341,-500.0,0.000334,10]
[319435677,1710736331350,-150.0,0.00033424,7]
[319435678,1710736331360,-1000.0,0.00033424,10]
[319435679,1710736331369,-500.0,0.00033424,4]
[319435680,1710736331378,-500.0,0.00033424,4]
[319435681,1710736331387,-500.0,0.00033424,4]
[319435682,1710736331396,-500.0,0.00033424,4]
[319435683,1710736331405,-500.0,0.00033424,4]
[319435684,1710736331414,-500.0,0.00033424,4]
[319435685,1710736331423,-500.0,0.00033424,4]
[319435686,1710736331432,-500.0,0.00033424,4]
[319435687,1710736331441,-500.0,0.00033424,4]
[319435688,1710736331451,-500.0,0.00033424,4]
[319435689,1710736331459,-500.0,0.00033424,4]
[319435690,1710736331469,-892.35,0.00033424,4]
[319435691,1710736331478,-588.99,0.00033424,4]
[319435692,1710736331487,-500.0,0.00033424,4]
[319435693,1710736331496,-500.0,0.00033424,4]
[319435694,1710736331505,-500.0,0.00033424,4]
[319435695,1710736331514,-500.0,0.00033424,4]
[319435696,1710736331523,-500.0,0.00033424,4]
[319435697,1710736331533,-500.0,0.00033424,4]
[319435698,1710736331542,-550.91596453,0.00033424,4]
[319435699,1710736331551,-752.67,0.00033424,4]
[319435700,1710736331560,-500.0,0.00033424,4]
[319435701,1710736331569,-527.47242317,0.00033424,4]
[319435702,1710736331579,-500.0,0.00033424,4]
[319435703,1710736331588,-500.0,0.00033424,4]
[319435704,1710736331597,-500.0,0.00033424,4]
[319435705,1710736331606,-500.0,0.00033424,4]
[319435706,1710736331615,-500.0,0.00033424,4]
[319435707,1710736331624,-869.9,0.00033424,4]
[319435708,1710736331634,-500.0,0.00033424,4]
[319435709,1710736331643,-1373.45,0.00033424,4]
[319435710,1710736331653,-536.23,0.00033424,4]
[319435711,1710736331662,-1105.28,0.00033424,4]
[319435712,1710736331671,-500.0,0.00033424,4]
[319435713,1710736331680,-500.0,0.00033424,4]
[319435714,1710736331689,-500.0,0.00033424,4]
[319435715,1710736331699,-618.14746175,0.00033424,4]
[319435716,1710736331708,-500.0,0.00033424,4]
[319435717,1710736331718,-622.18,0.00033424,4]
[319435718,1710736331727,-239.09297739,0.00033424,4]
[319435719,1710736331737,-500.0,0.00033424,4]
[319435720,1710736331747,-500.0,0.00033424,4]
[319435721,1710736331761,-500.0,0.00033424,4]
[319435722,1710736331770,-500.0,0.00033424,4]
[319435723,1710736331781,-501.4,0.00033424,4]
[319435724,1710736331791,-2231.25,0.00033424,4]
[319435725,1710736331800,-500.0,0.00033424,4]
[319435726,1710736331809,-500.0,0.00033424,4]
[319435727,1710736331819,-735.9,0.00033424,4]
[319435728,1710736331829,-500.0,0.00033424,4]
[319435729,1710736331838,-500.0,0.00033424,4]
[319435730,1710736331848,-500.0,0.00033424,4]
[319435731,1710736331858,-500.0,0.00033424,4]
[319435732,1710736331867,-503.00990024,0.00033424,4]
[319435733,1710736331877,-943.04,0.00033424,4]
[319435734,1710736331886,-269.58320104,0.00033424,4]
[319435735,1710736331896,-447.17139848,0.00033424,4]
[319435736,1710736331906,-503.91,0.00033424,4]
[319435737,1710736331916,-500.0,0.00033424,4]
[319435738,1710736331926,-500.0,0.00033424,4]
[319435739,1710736331935,-1566.14,0.00033424,4]
[319435740,1710736331945,-500.0,0.00033424,4]
[319435741,1710736331954,-507.78,0.00033424,4]
[319435742,1710736331964,-500.0,0.00033424,4]
[319435743,1710736331973,-500.0,0.00033424,4]
[319435744,1710736331982,-500.0,0.00033424,4]
[319435745,1710736331992,-832.17,0.00033424,4]
[319435746,1710736332001,-500.0,0.00033424,4]
[319435747,1710736332010,-500.0,0.00033424,4]
[319435748,1710736332019,-1123.76,0.00033424,4]
[319435749,1710736332030,-600.34,0.00033424,4]
[319435750,1710736332039,-710.22,0.00033424,4]
[319435751,1710736332049,-500.0,0.00033424,4]
[319435752,1710736332059,-500.0,0.00033424,4]
[319435753,1710736332069,-1438.95,0.00033424,4]
[319435754,1710736332078,-1027.19,0.00033424,4]
[319435755,1710736332088,-500.0,0.00033424,4]
[319435756,1710736332098,-500.0,0.00033424,4]
[319435757,1710736332107,-624.55,0.00033424,4]
[319435758,1710736332117,-595.77,0.00033424,4]
[319435759,1710736332126,-1826.25,0.00033424,4]
[319435760,1710736332135,-500.0,0.00033424,4]
[319435761,1710736332144,-931.82,0.00033424,4]
[319435762,1710736332153,-2156.89,0.00033424,4]
[319435763,1710736332162,-626.3,0.00033424,4]
[319435764,1710736332172,-500.0,0.00033424,4]
[319435765,1710736332181,-2005.2,0.00033424,4]
[319435766,1710736332190,-500.0,0.00033424,4]
[319435767,1710736332199,-500.0,0.00033424,4]
[319435768,1710736332208,-2463.3,0.00033424,4]
[319435769,1710736332218,-500.0,0.00033424,4]
[319435770,1710736332227,-303.24719014,0.00033424,4]
[319435771,1710736332236,-500.0,0.00033424,4]
[319435772,1710736332246,-2094.29,0.00033424,4]
[319435773,1710736332255,-911.56,0.00033424,4]
[319435774,1710736332264,-500.0,0.00033424,4]
[319435775,1710736332273,-2639.58,0.00033424,4]
[319435776,1710736332283,-500.0,0.00033424,4]
[319435777,1710736332292,-500.0,0.00033424,4]
[319435778,1710736332301,-3465.75,0.00033424,4]
[319435779,1710736332310,-523.09,0.00033424,4]
[319435780,1710736332319,-500.0,0.00033424,4]
[319435781,1710736332328,-500.0,0.00033424,4]
[319435782,1710736332338,-1239.79,0.00033424,4]
[319435783,1710736332347,-500.0,0.00033424,4]
[319435784,1710736332357,-3439.16,0.00033424,4]
[319435785,1710736332366,-865.02,0.00033424,4]
[319435786,1710736332375,-770.0,0.00033424,4]
[319435787,1710736332384,-500.0,0.00033424,4]
[319435788,1710736332393,-1050.75,0.00033424,4]
[319435789,1710736332403,-639.93,0.00033424,4]
[319435790,1710736332412,-3922.62,0.00033424,4]
[319435791,1710736332421,-953.43,0.00033424,4]
[319435792,1710736332430,-611.87,0.00033424,4]
[319435793,1710736332440,-500.0,0.00033424,4]
[319435794,1710736332449,-798.65,0.00033424,4]
[319435795,1710736332459,-2710.57,0.00033424,4]
[319435796,1710736332468,-500.0,0.00033424,4]
[319435797,1710736332477,-2948.74,0.00033424,4]
[319435798,1710736332486,-533.35501783,0.00033424,4]
[319435799,1710736332495,-539.71,0.00033424,4]
[319435800,1710736332505,-500.0,0.00033424,4]
[319435801,1710736332514,-500.0,0.00033424,4]
[319435802,1710736332524,-500.0,0.00033424,4]
[319435803,1710736332534,-500.0,0.00033424,4]
[319435804,1710736332547,-500.0,0.00033424,4]
[319435805,1710736332556,-1200.43,0.00033424,4]
[319435806,1710736332565,-500.0,0.00033424,4]
[319435807,1710736332575,-500.0,0.00033424,4]
[319435808,1710736332585,-500.0,0.00033424,4]
[319435809,1710736332594,-500.0,0.00033424,4]
[319435810,1710736332604,-646.93,0.00033424,4]
[319435811,1710736332613,-593.8,0.00033424,4]
[319435812,1710736332622,-3040.38,0.00033424,4]
[319435813,1710736332631,-912.86,0.00033424,4]
[319435814,1710736332641,-521.56,0.00033424,4]
[319435815,1710736332650,-623.06950501,0.00033424,4]
[319435816,1710736332660,-500.0,0.00033424,4]
[319435817,1710736332669,-2075.71,0.00033424,4]
[319435818,1710736332678,-1026.81,0.00033424,4]
[319435819,1710736332688,-788.56,0.00033424,4]
[319435820,1710736332697,-554.9363791,0.00033424,4]
[319435821,1710736332707,-500.0,0.00033424,4]
[319435822,1710736332717,-615.18,0.00033424,4]
[319435823,1710736332727,-500.0,0.00033424,4]
[319435824,1710736332737,-1506.09,0.00033424,4]
[319435825,1710736332747,-558.4606497,0.00033424,4]
[319435826,1710736332761,-500.0,0.00033424,4]
[319435827,1710736332770,-1442.43,0.00033424,4]
[319435828,1710736332780,-500.0,0.00033424,4]
[319435829,1710736332790,-4584.29,0.00033424,4]
[319435830,1710736332799,-1419.83,0.00033424,4]
[319435831,1710736332809,-1416.16,0.00033424,4]
[319435832,1710736332818,-1501.08,0.00033424,4]
[319435833,1710736332828,-500.0,0.00033424,4]
[319435834,1710736332838,-1326.91,0.00033424,4]
[319435835,1710736332847,-500.0,0.00033424,4]
[319435836,1710736332856,-1157.88,0.00033424,4]
[319435837,1710736332865,-500.0,0.00033424,4]
[319435838,1710736332874,-522.83,0.00033424,4]
[319435839,1710736332884,-1901.89,0.00033424,4]
[319435840,1710736332894,-884.27,0.00033424,4]
[319435841,1710736332904,-718.57,0.00033424,4]
[319435842,1710736332913,-500.0,0.00033424,4]
[319435843,1710736332923,-500.0,0.00033424,4]
[319435844,1710736332932,-500.0,0.00033424,4]
[319435845,1710736332941,-626.44,0.00033424,4]
[319435846,1710736332950,-1481.56,0.00033424,4]
[319435847,1710736332960,-820.19,0.00033424,4]
[319435848,1710736332969,-616.04,0.00033424,4]
[319435849,1710736332979,-661.6,0.00033424,4]
[319435850,1710736332988,-807.78,0.00033424,4]
[319435851,1710736332998,-576.56,0.00033424,4]
[319435852,1710736333008,-500.0,0.00033424,4]
[319435853,1710736333017,-500.0,0.00033424,4]
[319435854,1710736333029,-1258.08,0.00033424,4]